[Event "November 21 Early 2023"]
[Site "https://www.chess.com"]
[Date "2023.11.21"]
[Round "2"]
[White "Eljanov, Pavel"]
[Black "Iskusnyh, Sergei"]
[Result "1-0"]
[Board "55"]
[TimeControl "180+1"]
[WhiteFideId "14102951"]
[BlackFideId "4120027"]
[WhiteElo "2598"]
[BlackElo "2455"]
[WhiteTeam "UKR"]
[BlackTeam "RUS"]
[WhiteClock "0:02:12"]
[BlackClock "0:01:13"]

1. d4 {[%clk 0:03:00]}  d5 {[%clk 0:02:59]} 2. Bf4 {[%clk 0:03:01]}  Nf6 {[%clk 0:02:58]} 3. e3 {[%clk 0:03:01]}  c5 {[%clk 0:02:58]} 4. Nf3 {[%clk 0:03:01]}  Nc6 {[%clk 0:02:56]} 5. Nbd2 {[%clk 0:03:01]}  cxd4 {[%clk 0:02:55]} 6. exd4 {[%clk 0:03:01]}  Bg4 {[%clk 0:02:53]} 7. c3 {[%clk 0:02:56]}  e6 {[%clk 0:02:53]} 8. Qb3 {[%clk 0:02:52]}  Bd6 {[%clk 0:02:53]} 9. Qxb7 {[%clk 0:02:48]}  O-O {[%clk 0:02:51]} 10. Bg3 {[%clk 0:02:44]}  Bxg3 {[%clk 0:02:31]} 11. hxg3 {[%clk 0:02:45]}  Qd6 {[%clk 0:02:31]} 12. Bb5 {[%clk 0:02:26]}  Rac8 {[%clk 0:02:09]} 13. Qa6 {[%clk 0:02:20]}  Rfd8 {[%clk 0:01:35]} 14. O-O {[%clk 0:02:19]}  Qb8 {[%clk 0:01:25]} 15. Bxc6 {[%clk 0:02:16]}  Rd6 {[%clk 0:01:24]} 16. Ne5 {[%clk 0:02:16]}  Qxb2 {[%clk 0:01:13]} 17. Qxc8+ {[%clk 0:02:12]} 1-0

[Event "November 21 Early 2023"]
[Site "https://www.chess.com"]
[Date "2023.11.21"]
[Round "2"]
[White "Tologon tegin, Semetei"]
[Black "BardArtem"]
[Result "0-1"]
[Board "56"]
[TimeControl "180+1"]
[WhiteFideId "13800574"]
[WhiteElo "2258"]
[BlackElo "2853"]
[WhiteTeam "KGZ"]
[WhiteClock "0:00:06"]
[BlackClock "0:00:01"]

1. c4 {[%clk 0:02:52]}  e6 {[%clk 0:02:58]} 2. g3 {[%clk 0:02:52]}  d5 {[%clk 0:02:58]} 3. Bg2 {[%clk 0:02:51]}  Nf6 {[%clk 0:02:57]} 4. b3 {[%clk 0:02:48]}  c6 {[%clk 0:02:49]} 5. Bb2 {[%clk 0:02:48]}  Bd6 {[%clk 0:02:49]} 6. Nf3 {[%clk 0:02:32]}  O-O {[%clk 0:02:49]} 7. O-O {[%clk 0:02:32]}  Re8 {[%clk 0:02:49]} 8. Nc3 {[%clk 0:02:21]}  e5 {[%clk 0:02:42]} 9. cxd5 {[%clk 0:02:20]}  cxd5 {[%clk 0:02:43]} 10. Nb5 {[%clk 0:02:20]}  Nc6 {[%clk 0:02:41]} 11. Nxd6 {[%clk 0:02:17]}  Qxd6 {[%clk 0:02:42]} 12. d4 {[%clk 0:02:14]}  e4 {[%clk 0:02:38]} 13. Ne5 {[%clk 0:02:14]}  Be6 {[%clk 0:02:36]} 14. Rc1 {[%clk 0:02:13]}  Rac8 {[%clk 0:02:35]} 15. Qd2 {[%clk 0:02:04]}  h6 {[%clk 0:02:12]} 16. Rc5 {[%clk 0:01:17]}  Nxe5 {[%clk 0:02:05]} 17. Rxc8 {[%clk 0:01:08]}  Nf3+ {[%clk 0:02:04]} 18. exf3 {[%clk 0:01:06]}  Rxc8 {[%clk 0:02:04]} 19. fxe4 {[%clk 0:01:06]}  Nxe4 {[%clk 0:01:59]} 20. Bxe4 {[%clk 0:01:04]}  dxe4 {[%clk 0:02:00]} 21. Re1 {[%clk 0:00:45]}  Bd5 {[%clk 0:01:54]} 22. Rc1 {[%clk 0:00:37]}  Re8 {[%clk 0:01:51]} 23. Rc5 {[%clk 0:00:34]}  b6 {[%clk 0:01:47]} 24. Rc3 {[%clk 0:00:33]}  Qe6 {[%clk 0:01:40]} 25. Qe3 {[%clk 0:00:28]}  Qh3 {[%clk 0:01:26]} 26. Rc7 {[%clk 0:00:27]}  h5 {[%clk 0:01:16]} 27. Bc1 {[%clk 0:00:20]}  h4 {[%clk 0:00:50]} 28. Bd2 {[%clk 0:00:17]}  Re6 {[%clk 0:00:40]} 29. Rc8+ {[%clk 0:00:17]}  Kh7 {[%clk 0:00:40]} 30. Rd8 {[%clk 0:00:12]}  hxg3 {[%clk 0:00:34]} 31. fxg3 {[%clk 0:00:12]}  Rf6 {[%clk 0:00:32]} 32. Qe2 {[%clk 0:00:11]}  e3 {[%clk 0:00:26]} 33. Rxd5 {[%clk 0:00:10]}  g6 {[%clk 0:00:01]} 34. Bxe3 {[%clk 0:00:09]}  Qe6 {[%clk 0:00:02]} 35. Re5 {[%clk 0:00:09]}  Qc6 {[%clk 0:00:02]} 36. Bf4 {[%clk 0:00:07]}  Kg7 {[%clk 0:00:02]} 37. d5 {[%clk 0:00:07]}  Qc5+ {[%clk 0:00:02]} 38. Qe3 {[%clk 0:00:07]}  Qc2 {[%clk 0:00:02]} 39. Qd2 {[%clk 0:00:06]}  Qb1+ {[%clk 0:00:03]} 40. Kg2 {[%clk 0:00:06]}  a5 {[%clk 0:00:02]} 41. Re2 {[%clk 0:00:06]}  Qf5 {[%clk 0:00:01]} 42. Be5 {[%clk 0:00:06]}  Qf1# {[%clk 0:00:01]} 0-1

[Event "November 21 Early 2023"]
[Site "https://www.chess.com"]
[Date "2023.11.21"]
[Round "2"]
[White "Szpar, Milosz"]
[Black "Tikhonov, Viacheslav"]
[Result "1-0"]
[Board "57"]
[TimeControl "180+1"]
[WhiteFideId "1184989"]
[BlackFideId "44196407"]
[WhiteElo "2446"]
[BlackElo "2191"]
[WhiteTeam "POL"]
[BlackTeam "RUS"]
[WhiteClock "0:00:09"]
[BlackClock "0:00:00"]

1. e4 {[%clk 0:02:55]}  c5 {[%clk 0:02:59]} 2. Nf3 {[%clk 0:02:53]}  g6 {[%clk 0:02:59]} 3. c3 {[%clk 0:02:52]}  Bg7 {[%clk 0:02:59]} 4. d4 {[%clk 0:02:52]}  cxd4 {[%clk 0:03:00]} 5. cxd4 {[%clk 0:02:52]}  d5 {[%clk 0:03:01]} 6. e5 {[%clk 0:02:51]}  a6 {[%clk 0:03:01]} 7. h3 {[%clk 0:02:50]}  Nc6 {[%clk 0:03:01]} 8. Nc3 {[%clk 0:02:50]}  f6 {[%clk 0:03:02]} 9. exf6 {[%clk 0:02:39]}  Nxf6 {[%clk 0:03:03]} 10. Bd3 {[%clk 0:02:39]}  O-O {[%clk 0:03:03]} 11. O-O {[%clk 0:02:39]}  Nh5 {[%clk 0:03:00]} 12. Bc2 {[%clk 0:02:22]}  Kh8 {[%clk 0:02:42]} 13. Bb3 {[%clk 0:02:20]}  e6 {[%clk 0:02:25]} 14. Bg5 {[%clk 0:02:19]}  Qd6 {[%clk 0:02:23]} 15. Re1 {[%clk 0:02:06]}  b5 {[%clk 0:02:20]} 16. Rc1 {[%clk 0:01:58]}  Bd7 {[%clk 0:02:18]} 17. Qd2 {[%clk 0:01:50]}  Rxf3 {[%clk 0:01:50]} 18. gxf3 {[%clk 0:01:46]}  Nxd4 {[%clk 0:01:50]} 19. Bd1 {[%clk 0:01:46]}  e5 {[%clk 0:01:37]} 20. Re3 {[%clk 0:01:27]}  h6 {[%clk 0:01:03]} 21. Bh4 {[%clk 0:01:27]}  Nf4 {[%clk 0:01:02]} 22. Bg3 {[%clk 0:01:27]}  Rf8 {[%clk 0:00:22]} 23. Ne2 {[%clk 0:01:24]}  Nxh3+ {[%clk 0:00:16]} 24. Kg2 {[%clk 0:01:21]}  Nf4+ {[%clk 0:00:14]} 25. Bxf4 {[%clk 0:01:10]}  exf4 {[%clk 0:00:09]} 26. Rd3 {[%clk 0:01:10]}  Qe6 {[%clk 0:00:02]} 27. Ng1 {[%clk 0:00:30]}  Qf6 {[%clk 0:00:02]} 28. Rc7 {[%clk 0:00:19]}  Be6 {[%clk 0:00:02]} 29. Rxg7 {[%clk 0:00:18]}  Kxg7 {[%clk 0:00:02]} 30. Rxd4 {[%clk 0:00:19]}  Qg5+ {[%clk 0:00:02]} 31. Kf1 {[%clk 0:00:19]}  Rf5 {[%clk 0:00:01]} 32. Bb3 {[%clk 0:00:18]}  Re5 {[%clk 0:00:01]} 33. Qc3 {[%clk 0:00:18]}  Kh7 {[%clk 0:00:01]} 34. Qc7+ {[%clk 0:00:18]}  Kh8 {[%clk 0:00:01]} 35. Qb8+ {[%clk 0:00:18]}  Kh7 {[%clk 0:00:01]} 36. Qc7+ {[%clk 0:00:18]}  Kh8 {[%clk 0:00:02]} 37. Qc1 {[%clk 0:00:15]}  Qf5 {[%clk 0:00:02]} 38. Bc2 {[%clk 0:00:11]}  Qg5 {[%clk 0:00:01]} 39. Qxf4 {[%clk 0:00:09]}  Qh5 {[%clk 0:00:01]} 40. Qf6+ {[%clk 0:00:09]}  Kh7 {[%clk 0:00:00]} 41. Rh4 {[%clk 0:00:09]} 1-0

[Event "November 21 Early 2023"]
[Site "https://www.chess.com"]
[Date "2023.11.21"]
[Round "2"]
[White "Visakh N R"]
[Black "Shuvalov, Evgenij"]
[Result "0-1"]
[Board "59"]
[TimeControl "180+1"]
[WhiteFideId "25012223"]
[BlackFideId "4187237"]
[WhiteElo "2474"]
[BlackElo "2059"]
[WhiteTeam "IND"]
[BlackTeam "FID"]
[WhiteClock "0:01:33"]
[BlackClock "0:01:12"]

1. e4 {[%clk 0:03:00]}  e6 {[%clk 0:03:00]} 2. d4 {[%clk 0:03:00]}  d5 {[%clk 0:03:01]} 3. Bd3 {[%clk 0:02:59]}  c5 {[%clk 0:02:59]} 4. exd5 {[%clk 0:02:57]}  exd5 {[%clk 0:03:00]} 5. dxc5 {[%clk 0:02:55]}  Bxc5 {[%clk 0:03:00]} 6. Nf3 {[%clk 0:02:56]}  Nf6 {[%clk 0:02:59]} 7. O-O {[%clk 0:02:52]}  O-O {[%clk 0:03:00]} 8. h3 {[%clk 0:02:52]}  h6 {[%clk 0:02:58]} 9. Nbd2 {[%clk 0:02:51]}  Nc6 {[%clk 0:02:53]} 10. Nb3 {[%clk 0:02:51]}  Bb6 {[%clk 0:02:53]} 11. c3 {[%clk 0:02:50]}  Qd6 {[%clk 0:02:52]} 12. Re1 {[%clk 0:02:48]}  Bxh3 {[%clk 0:02:44]} 13. gxh3 {[%clk 0:02:36]}  Qg3+ {[%clk 0:02:43]} 14. Kh1 {[%clk 0:02:36]}  Qxh3+ {[%clk 0:02:39]} 15. Nh2 {[%clk 0:02:35]}  Bxf2 {[%clk 0:02:30]} 16. Rf1 {[%clk 0:02:31]}  Bg3 {[%clk 0:02:24]} 17. Qe2 {[%clk 0:02:29]}  Bxh2 {[%clk 0:02:01]} 18. Bf5 {[%clk 0:02:22]}  Rae8 {[%clk 0:01:45]} 19. Qf2 {[%clk 0:02:16]}  Ng4 {[%clk 0:01:31]} 20. Bxg4 {[%clk 0:02:14]}  Qxg4 {[%clk 0:01:32]} 21. Qxh2 {[%clk 0:02:08]}  Re2 {[%clk 0:01:30]} 22. Bf4 {[%clk 0:01:37]}  Rxh2+ {[%clk 0:01:27]} 23. Bxh2 {[%clk 0:01:38]}  Re8 {[%clk 0:01:24]} 24. Rae1 {[%clk 0:01:37]}  Re2 {[%clk 0:01:14]} 25. Nc1 {[%clk 0:01:33]}  Qg2# {[%clk 0:01:12]} 0-1

[Event "November 21 Early 2023"]
[Site "https://www.chess.com"]
[Date "2023.11.21"]
[Round "2"]
[White "Vakhlamov, Igor L."]
[Black "NovoselovRoman"]
[Result "1-0"]
[Board "64"]
[TimeControl "180+1"]
[WhiteFideId "24126748"]
[WhiteElo "2407"]
[BlackElo "2543"]
[WhiteTeam "RUS"]
[WhiteClock "0:00:21"]
[BlackClock "0:00:02"]

1. e4 {[%clk 0:02:46]}  e6 {[%clk 0:02:58]} 2. d4 {[%clk 0:02:45]}  d5 {[%clk 0:02:58]} 3. Nc3 {[%clk 0:02:46]}  Nf6 {[%clk 0:02:57]} 4. Bd3 {[%clk 0:02:46]}  c5 {[%clk 0:02:54]} 5. Nf3 {[%clk 0:02:46]}  Nc6 {[%clk 0:02:53]} 6. exd5 {[%clk 0:02:44]}  Nxd5 {[%clk 0:02:52]} 7. Nxd5 {[%clk 0:02:44]}  Qxd5 {[%clk 0:02:50]} 8. dxc5 {[%clk 0:02:44]}  Bxc5 {[%clk 0:02:49]} 9. O-O {[%clk 0:02:45]}  Bd7 {[%clk 0:02:22]} 10. Qe2 {[%clk 0:02:42]}  Qh5 {[%clk 0:02:16]} 11. Rd1 {[%clk 0:02:34]}  Rd8 {[%clk 0:02:10]} 12. Bf4 {[%clk 0:02:26]}  O-O {[%clk 0:02:00]} 13. Bc7 {[%clk 0:02:18]}  Rc8 {[%clk 0:01:50]} 14. Bxh7+ {[%clk 0:02:15]}  Qxh7 {[%clk 0:01:41]} 15. Rxd7 {[%clk 0:02:16]}  Nb4 {[%clk 0:01:24]} 16. c3 {[%clk 0:01:49]}  Nd5 {[%clk 0:01:23]} 17. Bg3 {[%clk 0:01:50]}  b5 {[%clk 0:01:05]} 18. Qxb5 {[%clk 0:01:41]}  Qc2 {[%clk 0:01:05]} 19. Qb3 {[%clk 0:01:38]}  Qf5 {[%clk 0:00:51]} 20. Re1 {[%clk 0:01:31]}  Nf4 {[%clk 0:00:44]} 21. Bxf4 {[%clk 0:01:23]}  Qxf4 {[%clk 0:00:43]} 22. Qd1 {[%clk 0:01:22]}  Bb6 {[%clk 0:00:37]} 23. Qd2 {[%clk 0:01:20]}  Qa4 {[%clk 0:00:24]} 24. b3 {[%clk 0:01:18]}  Qc6 {[%clk 0:00:24]} 25. Ne5 {[%clk 0:01:16]}  Qxc3 {[%clk 0:00:22]} 26. Nc4 {[%clk 0:01:05]}  Qxd2 {[%clk 0:00:19]} 27. Rxd2 {[%clk 0:01:05]}  Bc5 {[%clk 0:00:18]} 28. Red1 {[%clk 0:01:04]}  g5 {[%clk 0:00:15]} 29. g3 {[%clk 0:01:04]}  Kg7 {[%clk 0:00:15]} 30. Kg2 {[%clk 0:01:04]}  Rc6 {[%clk 0:00:14]} 31. Rd7 {[%clk 0:01:03]}  Ra6 {[%clk 0:00:14]} 32. R1d2 {[%clk 0:01:03]}  Kf6 {[%clk 0:00:12]} 33. h3 {[%clk 0:01:03]}  Bb4 {[%clk 0:00:11]} 34. Rc2 {[%clk 0:01:02]}  Rc6 {[%clk 0:00:11]} 35. Rxa7 {[%clk 0:00:58]}  Rd8 {[%clk 0:00:10]} 36. Re2 {[%clk 0:00:51]}  Rd5 {[%clk 0:00:08]} 37. Rb7 {[%clk 0:00:47]}  Bc5 {[%clk 0:00:08]} 38. Nd2 {[%clk 0:00:48]}  Bd4 {[%clk 0:00:07]} 39. a4 {[%clk 0:00:36]}  Rc1 {[%clk 0:00:06]} 40. Nc4 {[%clk 0:00:30]}  Rb1 {[%clk 0:00:03]} 41. a5 {[%clk 0:00:29]}  Bc5 {[%clk 0:00:03]} 42. a6 {[%clk 0:00:25]}  Rdd1 {[%clk 0:00:03]} 43. Ne5 {[%clk 0:00:22]}  Ra1 {[%clk 0:00:02]} 44. Rxf7# {[%clk 0:00:21]} 1-0

[Event "November 21 Early 2023"]
[Site "https://www.chess.com"]
[Date "2023.11.21"]
[Round "2"]
[White "Guliev, Logman"]
[Black "Urazayev, Arystanbek"]
[Result "0-1"]
[Board "65"]
[TimeControl "180+1"]
[WhiteFideId "13400061"]
[BlackFideId "13709810"]
[WhiteElo "2098"]
[BlackElo "2405"]
[WhiteTeam "AZE"]
[BlackTeam "KAZ"]
[WhiteClock "0:00:00"]
[BlackClock "0:01:12"]

1. e4 {[%clk 0:03:00]}  e5 {[%clk 0:02:56]} 2. Nf3 {[%clk 0:03:00]}  Nc6 {[%clk 0:02:56]} 3. Bb5 {[%clk 0:02:59]}  a6 {[%clk 0:02:56]} 4. Ba4 {[%clk 0:02:59]}  Nf6 {[%clk 0:02:57]} 5. O-O {[%clk 0:02:59]}  Be7 {[%clk 0:02:57]} 6. Re1 {[%clk 0:03:00]}  b5 {[%clk 0:02:58]} 7. Bb3 {[%clk 0:03:00]}  O-O {[%clk 0:02:58]} 8. h3 {[%clk 0:03:00]}  Bb7 {[%clk 0:02:58]} 9. d3 {[%clk 0:02:58]}  d5 {[%clk 0:02:58]} 10. exd5 {[%clk 0:02:58]}  Nxd5 {[%clk 0:02:59]} 11. Nc3 {[%clk 0:02:45]}  Nxc3 {[%clk 0:02:59]} 12. bxc3 {[%clk 0:02:45]}  Bf6 {[%clk 0:02:59]} 13. a4 {[%clk 0:02:43]}  b4 {[%clk 0:02:46]} 14. Nd2 {[%clk 0:02:21]}  bxc3 {[%clk 0:02:38]} 15. Ne4 {[%clk 0:02:22]}  Nd4 {[%clk 0:02:37]} 16. Ba3 {[%clk 0:02:12]}  Nxb3 {[%clk 0:02:33]} 17. cxb3 {[%clk 0:01:48]}  Re8 {[%clk 0:02:31]} 18. Qc2 {[%clk 0:01:48]}  Qd4 {[%clk 0:01:43]} 19. Bc5 {[%clk 0:01:47]}  Qd5 {[%clk 0:01:41]} 20. Qxc3 {[%clk 0:01:45]}  Rad8 {[%clk 0:01:38]} 21. Re3 {[%clk 0:01:38]}  Bh4 {[%clk 0:01:38]} 22. Rf3 {[%clk 0:01:18]}  f5 {[%clk 0:01:26]} 23. Rxf5 {[%clk 0:01:17]}  Qxd3 {[%clk 0:01:26]} 24. Qxd3 {[%clk 0:00:44]}  Rxd3 {[%clk 0:01:26]} 25. Ng5 {[%clk 0:00:38]}  h6 {[%clk 0:01:12]} 26. Nf3 {[%clk 0:00:35]}  Bf6 {[%clk 0:01:12]} 27. b4 {[%clk 0:00:33]}  e4 {[%clk 0:01:12]} 28. Ne1 {[%clk 0:00:00]}  Bxa1 {[%clk 0:01:12]} 0-1

[Event "November 21 Early 2023"]
[Site "https://www.chess.com"]
[Date "2023.11.21"]
[Round "2"]
[White "Pakleza, Zbigniew"]
[Black "ChessRespected"]
[Result "1-0"]
[Board "66"]
[TimeControl "180+1"]
[WhiteFideId "1119290"]
[WhiteElo "2410"]
[BlackElo "2537"]
[WhiteTeam "POL"]
[WhiteClock "0:00:08"]
[BlackClock "0:00:00"]

1. d4 {[%clk 0:03:00]}  d5 {[%clk 0:02:59]} 2. Bf4 {[%clk 0:03:00]}  Nf6 {[%clk 0:02:59]} 3. e3 {[%clk 0:03:00]}  c5 {[%clk 0:02:59]} 4. c3 {[%clk 0:03:01]}  Nc6 {[%clk 0:02:58]} 5. Nd2 {[%clk 0:03:01]}  g6 {[%clk 0:02:56]} 6. Ngf3 {[%clk 0:03:01]}  Nh5 {[%clk 0:02:56]} 7. Be5 {[%clk 0:02:59]}  f6 {[%clk 0:02:55]} 8. Bg3 {[%clk 0:02:59]}  cxd4 {[%clk 0:02:53]} 9. cxd4 {[%clk 0:02:58]}  Nxg3 {[%clk 0:02:53]} 10. hxg3 {[%clk 0:02:59]}  Bg7 {[%clk 0:02:53]} 11. Be2 {[%clk 0:02:50]}  O-O {[%clk 0:02:47]} 12. Rc1 {[%clk 0:02:44]}  Be6 {[%clk 0:02:40]} 13. O-O {[%clk 0:02:38]}  Bf7 {[%clk 0:02:40]} 14. Nb3 {[%clk 0:02:32]}  e5 {[%clk 0:02:34]} 15. Nc5 {[%clk 0:02:17]}  Qe7 {[%clk 0:02:34]} 16. Re1 {[%clk 0:01:56]}  Rac8 {[%clk 0:02:30]} 17. Bf1 {[%clk 0:01:53]}  e4 {[%clk 0:02:30]} 18. Nd2 {[%clk 0:01:51]}  f5 {[%clk 0:02:29]} 19. Qa4 {[%clk 0:01:31]}  h5 {[%clk 0:02:25]} 20. Rc3 {[%clk 0:01:30]}  h4 {[%clk 0:02:21]} 21. gxh4 {[%clk 0:01:29]}  f4 {[%clk 0:02:18]} 22. Rec1 {[%clk 0:00:56]}  fxe3 {[%clk 0:02:13]} 23. fxe3 {[%clk 0:00:57]}  Bh6 {[%clk 0:01:46]} 24. g3 {[%clk 0:00:41]}  g5 {[%clk 0:01:29]} 25. Bh3 {[%clk 0:00:36]}  gxh4 {[%clk 0:01:23]} 26. Bxc8 {[%clk 0:00:36]}  Rxc8 {[%clk 0:01:22]} 27. Qd1 {[%clk 0:00:29]}  Qg5 {[%clk 0:01:20]} 28. Nf1 {[%clk 0:00:20]}  hxg3 {[%clk 0:01:18]} 29. R1c2 {[%clk 0:00:18]}  Bh5 {[%clk 0:01:12]} 30. Qe1 {[%clk 0:00:18]}  Rf8 {[%clk 0:01:08]} 31. Rg2 {[%clk 0:00:18]}  Kh7 {[%clk 0:00:56]} 32. Ne6 {[%clk 0:00:17]}  Rxf1+ {[%clk 0:00:49]} 33. Qxf1 {[%clk 0:00:15]}  Qxe3+ {[%clk 0:00:48]} 34. Rxe3 {[%clk 0:00:14]}  Bxe3+ {[%clk 0:00:48]} 35. Kh1 {[%clk 0:00:14]}  Bf3 {[%clk 0:00:47]} 36. Qe1 {[%clk 0:00:09]}  Bf2 {[%clk 0:00:45]} 37. Qc1 {[%clk 0:00:07]}  e3 {[%clk 0:00:42]} 38. Ng5+ {[%clk 0:00:07]}  Kg6 {[%clk 0:00:30]} 39. Nxf3 {[%clk 0:00:08]}  Nxd4 {[%clk 0:00:31]} 40. Nxd4 {[%clk 0:00:08]}  e2 {[%clk 0:00:00]} 41. Nxe2 {[%clk 0:00:08]} 1-0

[Event "November 21 Early 2023"]
[Site "https://www.chess.com"]
[Date "2023.11.21"]
[Round "2"]
[White "MFatigue"]
[Black "Petkov, Momchil"]
[Result "0-1"]
[Board "69"]
[TimeControl "180+1"]
[BlackFideId "2921642"]
[WhiteElo "2536"]
[BlackElo "2383"]
[BlackTeam "BUL"]
[WhiteClock "0:00:03"]
[BlackClock "0:00:05"]

1. e4 {[%clk 0:03:00]}  c5 {[%clk 0:02:59]} 2. a3 {[%clk 0:03:01]}  g6 {[%clk 0:02:58]} 3. h4 {[%clk 0:03:00]}  h5 {[%clk 0:02:57]} 4. Nc3 {[%clk 0:03:01]}  Bg7 {[%clk 0:02:57]} 5. Bc4 {[%clk 0:03:01]}  Nc6 {[%clk 0:02:57]} 6. d3 {[%clk 0:03:02]}  e6 {[%clk 0:02:58]} 7. Nge2 {[%clk 0:03:02]}  Nge7 {[%clk 0:02:45]} 8. Bg5 {[%clk 0:03:02]}  a6 {[%clk 0:02:33]} 9. Ba2 {[%clk 0:03:02]}  b5 {[%clk 0:02:29]} 10. Qd2 {[%clk 0:03:01]}  Bb7 {[%clk 0:02:25]} 11. O-O {[%clk 0:03:00]}  O-O {[%clk 0:02:21]} 12. Rae1 {[%clk 0:02:50]}  d6 {[%clk 0:02:01]} 13. Bh6 {[%clk 0:02:27]}  Ne5 {[%clk 0:01:38]} 14. d4 {[%clk 0:02:10]}  cxd4 {[%clk 0:01:33]} 15. Nxd4 {[%clk 0:02:11]}  N7c6 {[%clk 0:01:21]} 16. Nce2 {[%clk 0:02:02]}  Nxd4 {[%clk 0:01:15]} 17. Nxd4 {[%clk 0:02:03]}  Bxh6 {[%clk 0:01:03]} 18. Qxh6 {[%clk 0:02:04]}  Ng4 {[%clk 0:00:53]} 19. Qg5 {[%clk 0:01:50]}  Qxg5 {[%clk 0:00:53]} 20. hxg5 {[%clk 0:01:51]}  Rac8 {[%clk 0:00:54]} 21. c3 {[%clk 0:01:50]}  Rc5 {[%clk 0:00:52]} 22. Rd1 {[%clk 0:01:30]}  Rd8 {[%clk 0:00:35]} 23. Rd2 {[%clk 0:01:07]}  Rxg5 {[%clk 0:00:32]} 24. Bxe6 {[%clk 0:01:04]}  Nf6 {[%clk 0:00:28]} 25. f3 {[%clk 0:00:53]}  d5 {[%clk 0:00:23]} 26. exd5 {[%clk 0:00:38]}  fxe6 {[%clk 0:00:20]} 27. dxe6 {[%clk 0:00:33]}  Re5 {[%clk 0:00:18]} 28. Rfd1 {[%clk 0:00:25]}  Re8 {[%clk 0:00:18]} 29. Kf2 {[%clk 0:00:25]}  Bd5 {[%clk 0:00:18]} 30. Ne2 {[%clk 0:00:15]}  Bxe6 {[%clk 0:00:16]} 31. Nf4 {[%clk 0:00:16]}  Bf7 {[%clk 0:00:16]} 32. Rd6 {[%clk 0:00:15]}  Kg7 {[%clk 0:00:16]} 33. R1d2 {[%clk 0:00:15]}  g5 {[%clk 0:00:16]} 34. Nh3 {[%clk 0:00:14]}  R8e6 {[%clk 0:00:17]} 35. R6d4 {[%clk 0:00:12]}  Rc6 {[%clk 0:00:16]} 36. f4 {[%clk 0:00:11]}  Ne4+ {[%clk 0:00:16]} 37. Ke3 {[%clk 0:00:08]}  Nxd2+ {[%clk 0:00:16]} 38. fxe5 {[%clk 0:00:08]}  Nc4+ {[%clk 0:00:16]} 39. Ke4 {[%clk 0:00:07]}  Rc5 {[%clk 0:00:13]} 40. Nxg5 {[%clk 0:00:06]}  Rxe5+ {[%clk 0:00:14]} 41. Kf4 {[%clk 0:00:07]}  Bg6 {[%clk 0:00:11]} 42. Rd7+ {[%clk 0:00:07]}  Kf6 {[%clk 0:00:08]} 43. Nf3 {[%clk 0:00:05]}  Rf5+ {[%clk 0:00:09]} 44. Kg3 {[%clk 0:00:06]}  Be8 {[%clk 0:00:05]} 45. Ra7 {[%clk 0:00:06]}  Rd5 {[%clk 0:00:03]} 46. Rxa6+ {[%clk 0:00:06]}  Ke7 {[%clk 0:00:04]} 47. Ra7+ {[%clk 0:00:07]}  Kd6 {[%clk 0:00:04]} 48. Ra6+ {[%clk 0:00:05]}  Kc7 {[%clk 0:00:04]} 49. b3 {[%clk 0:00:05]}  Nd6 {[%clk 0:00:04]} 50. Ra7+ {[%clk 0:00:05]}  Kb6 {[%clk 0:00:04]} 51. Re7 {[%clk 0:00:04]}  Nf5+ {[%clk 0:00:04]} 52. Kf4 {[%clk 0:00:03]}  Nxe7 {[%clk 0:00:05]} 0-1